bitfinex/quotes_SOLUSD_20250418
["timestamp","ask_amount","ask_price","bid_price","bid_amount"]
[1744949176343,0.03,134.0,133.99,35.1903436]
[1744949176829,0.03,134.0,133.99,26.8448874]
[1744949177036,0.03,134.0,133.99,0.8448874]
[1744949183426,9.62460721,134.0,133.99,0.8448874]
[1744949183619,28.27425607,134.0,133.99,0.8448874]
[1744949184640,35.73694263,134.0,133.99,0.8448874]
[1744949190261,7.49268656,134.0,133.99,0.8448874]
[1744949190754,0.03,134.0,133.99,0.8448874]
[1744949198229,9.62460721,134.0,133.99,0.8448874]
[1744949198437,28.27425607,134.0,133.99,0.8448874]
[1744949198751,35.73694263,134.0,133.99,0.8448874]
[1744949198958,35.73694263,134.0,133.93,9.59460721]
[1744949198959,54.82014375,134.0,133.93,9.59460721]
[1744949199141,6.14445087,133.98,133.93,14.96]
[1744949199341,6.14445087,133.98,133.93,21.10445087]
[1744949200058,7.46435769,133.97,133.93,21.10445087]
[1744949201134,7.46435769,133.97,133.93,24.56023799]
[1744949202856,7.46435769,133.97,133.93,9.60023799]
[1744949203161,9.60023799,133.95,133.9,113.57123799]
[1744949203554,9.60023799,133.95,133.9,14.96]
[1744949204235,9.60023799,133.93,133.9,14.96]
[1744949204452,9.60023799,133.93,133.89,2.6018902]
[1744949205159,7.46714456,133.92,133.89,2.6018902]
[1744949208460,17.06738255,133.92,133.89,2.6018902]
[1744949208764,18.64964886,133.92,133.89,12.20212819]
[1744949208939,18.64964886,133.92,133.89,2.6018902]
[1744949211165,7.46770218,133.91,133.89,2.6018902]
[1744949212265,26.11512105,133.95,133.9,9.60023799]
[1744949212446,7.46547219,133.95,133.92,9.60023799]
[1744949212631,7.46547219,133.95,133.93,9.60023799]
[1744949213470,18.66351624,133.96,133.9,14.96]
[1744949213471,26.12843113,133.96,133.92,9.60023799]
[1744949213841,35.72866912,133.96,133.91,9.60023799]
[1744949214362,9.60023799,133.94,133.9,14.96]
[1744949214774,28.24988685,133.93,133.9,14.96]
[1744949214942,28.24988685,133.93,133.89,2.6018902]
[1744949215341,7.46714456,133.92,133.89,2.6018902]
[1744949217368,18.64964886,133.91,133.89,2.6018902]
[1744949218284,26.13500596,133.92,133.89,2.6018902]
[1744949218584,7.46714456,133.92,133.89,12.20212819]
[1744949219781,18.64964886,133.91,133.89,2.6018902]
[1744949219987,28.24988685,133.91,133.89,2.6018902]
[1744949220170,28.24988685,133.9,133.89,2.6018902]
[1744949220372,18.64964886,133.9,133.89,2.6018902]
[1744949220569,26.13500596,133.92,133.89,2.6018902]
[1744949220766,26.13500596,133.92,133.89,12.20212819]
[1744949221679,26.13500596,133.92,133.89,2.6018902]
[1744949221882,18.64964886,133.91,133.89,2.6018902]
[1744949222377,9.60023799,133.9,133.89,2.6018902]
[1744949223399,17.06849788,133.9,133.89,2.6018902]
[1744949223795,17.49498259,133.9,133.89,1e-08]
[1744949224091,62.14463145,133.9,133.89,1e-08]
[1744949225266,68.48283145,133.9,133.89,1e-08]
[1744949226577,68.05634674,133.9,133.89,1e-08]
[1744949227272,68.48283145,133.9,133.89,1e-08]
[1744949227883,68.34066988,133.9,133.89,1e-08]
[1744949228087,7.46825989,133.9,133.89,1e-08]
[1744949229169,26.13500596,133.92,133.89,1e-08]
[1744949229868,18.64964886,133.91,133.89,1e-08]
[1744949230072,28.24988685,133.91,133.89,1e-08]
[1744949230791,18.64964886,133.91,133.89,1e-08]
[1744949231269,7.46825989,133.9,133.89,1e-08]
[1744949231794,7.46825989,133.9,133.89,9.600238]
[1744949233501,26.13500596,133.92,133.89,9.600238]
[1744949233787,26.13500596,133.92,133.89,1e-08]
[1744949234799,7.46714456,133.92,133.9,9.60023799]
[1744949234975,7.46714456,133.92,133.89,1e-08]
[1744949235368,26.13500596,133.92,133.89,1e-08]
[1744949235574,35.73524395,133.92,133.89,1e-08]
[1744949235781,18.64964886,133.91,133.89,1e-08]
[1744949237900,7.46825989,133.9,133.89,1e-08]
[1744949238191,26.11790875,133.9,133.89,1e-08]
[1744949238498,35.71814674,133.9,133.89,1e-08]
[1744949240390,26.11790875,133.9,133.89,1e-08]
[1744949240900,35.71814674,133.9,133.89,1e-08]
[1744949241372,26.11790875,133.9,133.89,1e-08]
[1744949242098,7.46825989,133.9,133.89,1e-08]
[1744949242494,26.13500596,133.92,133.89,1e-08]
[1744949242679,35.73524395,133.92,133.89,1e-08]
[1744949245977,26.11790875,133.9,133.89,1e-08]
[1744949246385,35.71814674,133.9,133.89,1e-08]
[1744949247675,26.11790875,133.9,133.89,1e-08]
[1744949249394,32.69479017,133.9,133.89,1e-08]
[1744949249691,26.11790875,133.9,133.89,1e-08]
[1744949249894,32.26830546,133.9,133.89,1e-08]
[1744949250098,37.77755309,133.9,133.89,1e-08]
[1744949250501,38.2040378,133.9,133.89,1e-08]
[1744949250887,38.06187623,133.9,133.89,1e-08]
[1744949251082,37.77755309,133.9,133.89,1e-08]
[1744949251279,32.69479017,133.9,133.89,1e-08]
[1744949251787,35.44908612,133.9,133.89,1e-08]
[1744949253201,40.95709181,133.9,133.89,1e-08]
[1744949254081,34.8066951,133.9,133.89,1e-08]
[1744949254281,35.44908612,133.9,133.89,1e-08]
[1744949254503,32.69479017,133.9,133.89,1e-08]
[1744949255898,35.44849314,133.9,133.89,1e-08]
[1744949256105,61.44849314,133.9,133.89,1e-08]
[1744949256301,35.44849314,133.9,133.88,1e-08]
[1744949256505,24.80004557,133.84,133.83,0.063]
[1744949257101,18.64964886,133.84,133.83,0.063]
[1744949257703,6.15039671,133.86,133.83,0.063]
[1744949258300,7.47104968,133.85,133.83,0.063]
[1744949261421,6.15039671,133.85,133.83,0.063]
[1744949261604,18.64964886,133.84,133.83,0.063]
[1744949263711,7.47160789,133.84,133.83,0.063]
[1744949265008,26.42648471,133.89,133.83,0.063]
[1744949265009,18.67307456,133.89,133.83,7.77579671]
[1744949265190,18.67307456,133.89,133.85,6.15039671]
[1744949265592,24.82347127,133.89,133.84,6.15039671]
[1744949265798,26.14189224,133.89,133.84,6.15039671]
[1744949266209,26.14189224,133.89,133.83,16.6454]
[1744949266426,6.15039671,133.87,133.83,15.083]
[1744949266611,24.80004557,133.86,133.83,15.083]
[1744949266791,50.80004557,133.86,133.83,0.063]
[1744949267000,18.64964886,133.84,133.83,0.063]
[1744949267516,6.15039671,133.85,133.83,0.063]
[1744949267810,7.47160789,133.84,133.83,0.063]
[1744949268014,13.6220046,133.84,133.83,0.063]
[1744949269300,17.09130475,133.84,133.83,0.063]
[1744949270294,7.47160789,133.84,133.83,0.063]
[1744949270694,17.09130475,133.84,133.83,0.063]
[1744949272001,17.09130475,133.84,133.78,1.5624]
[1744949272002,18.64964886,133.83,133.78,1.5624]
[1744949272302,28.26934572,133.83,133.78,9.61969686]
[1744949272801,18.64964886,133.83,133.79,9.61969686]
[1744949273110,28.26934572,133.83,133.78,9.61969686]
[1744949273519,9.61969686,133.82,133.77,31.15869686]
[1744949274100,35.74262873,133.81,133.77,15.083]
[1744949274296,26.12293187,133.81,133.77,9.68269686]
[1744949275109,35.74262873,133.81,133.77,0.063]
[1744949275313,54.42583626,133.81,133.77,0.063]
[1744949277995,7.47440017,133.79,133.77,0.063]
[1744949278195,7.47440017,133.79,133.75,9.61969686]
[1744949278408,9.61969686,133.78,133.74,1.5624]
[1744949278615,9.61969686,133.78,133.73,21.476]
[1744949278914,9.61969686,133.77,133.73,21.476]
[1744949279106,9.61969686,133.77,133.73,24.63969686]
[1744949279303,9.61969686,133.77,133.73,15.02]
[1744949280009,7.47607655,133.76,133.73,15.02]
[1744949280810,7.47607655,133.76,133.73,24.63969686]
[1744949282119,7.47607655,133.76,133.73,15.02]
[1744949282310,17.09577341,133.76,133.71,35.61969686]
[1744949282498,35.78596479,133.76,133.71,9.61969686]
[1744949282900,7.47607655,133.76,133.73,9.61969686]
[1744949283208,7.47607655,133.76,133.74,9.61969686]
[1744949283406,26.15744797,133.81,133.75,9.61969686]
[1744949283603,26.15744797,133.81,133.77,9.61969686]
[1744949284014,26.15744797,133.81,133.75,6.0629]
[1744949284417,7.47328301,133.81,133.78,9.61969686]
[1744949285904,7.47328301,133.81,133.77,9.61969686]
[1744949287026,7.47328301,133.81,133.78,9.61969686]
[1744949287800,7.47328301,133.81,133.77,9.61969686]
[1744949288421,17.09297987,133.81,133.76,9.61969686]
[1744949288801,35.7761874,133.81,133.76,9.61969686]
[1744949288998,26.15649054,133.81,133.76,9.61969686]
[1744949289224,26.15649054,133.81,133.76,6.1592505]
[1744949289907,26.15649054,133.81,133.77,6.1592505]
[1744949291613,26.15649054,133.81,133.75,6.0629]
[1744949292124,32.31574104,133.81,133.76,6.1592505]
[1744949292514,32.31574104,133.81,133.75,6.0629]
[1744949292515,24.80889936,133.8,133.75,6.0629]
[1744949292717,6.1592505,133.79,133.74,88.9692505]
[1744949292916,6.1592505,133.78,133.74,82.81]
[1744949293122,6.1592505,133.78,133.72,21.1992505]
[1744949293323,6.1592505,133.77,133.72,21.1992505]
[1744949294528,7.47607655,133.76,133.72,21.1992505]
[1744949294835,7.47607655,133.76,133.73,6.1592505]
[1744949296638,7.47551767,133.77,133.74,6.1592505]
[1744949296814,7.47440017,133.79,133.76,6.1592505]
[1744949297017,24.8411669,133.82,133.77,6.1592505]
[1744949297318,24.8411669,133.82,133.76,6.1592505]
[1744949297638,24.8411669,133.82,133.77,6.1592505]
[1744949297837,7.47328301,133.81,133.77,6.1592505]
[1744949299335,7.47328301,133.81,133.77,9.62275192]
[1744949300733,17.09603493,133.81,133.76,26.0]
[1744949302850,9.62275192,133.8,133.75,1.5492]
[1744949303140,9.62275192,133.79,133.74,9.62275192]
[1744949303924,28.27240078,133.78,133.73,9.62275192]
[1744949304635,7.47551767,133.77,133.73,9.62275192]
[1744949305020,7.47551767,133.77,133.72,42.5892]
[1744949305216,7.47551767,133.77,133.73,9.62275192]
[1744949306519,7.47663551,133.75,133.72,15.04]
[1744949306938,7.47663551,133.75,133.71,9.62275192]
[1744949308246,17.09938743,133.75,133.7,92.43275192]
[1744949309152,7.47663551,133.75,133.71,9.62275192]
[1744949309619,7.47663551,133.75,133.72,9.62275192]
[1744949310030,7.47663551,133.75,133.71,9.62275192]
[1744949311468,18.68746743,133.78,133.7,94.67657994]
[1744949311649,28.31021935,133.78,133.73,9.62275192]
[1744949312434,7.47551767,133.77,133.73,9.62275192]
[1744949312835,26.16242631,133.78,133.73,9.62275192]
[1744949313022,35.78517823,133.78,133.73,9.62275192]
[1744949313629,35.78517823,133.78,133.72,9.62275192]
[1744949313630,9.62275192,133.77,133.72,9.62275192]
[1744949314548,9.62275192,133.76,133.71,9.62275192]
[1744949314849,9.62275192,133.76,133.7,82.81]
[1744949315041,7.47663551,133.75,133.71,9.62275192]
[1744949317555,7.47551767,133.77,133.72,9.62275192]
[1744949317727,7.47551767,133.77,133.74,9.62275192]
[1744949318328,7.47551767,133.77,133.73,9.62275192]
[1744949318546,26.16431186,133.77,133.73,9.62275192]
[1744949318741,7.47551767,133.77,133.74,9.62275192]
[1744949319148,7.47551767,133.77,133.73,9.62275192]
[1744949320351,7.47551767,133.77,133.74,9.62275192]
[1744949321138,7.47551767,133.77,133.74,6.16196794]
[1744949321853,7.47495888,133.78,133.74,6.16196794]
[1744949322431,7.47495888,133.78,133.76,6.16196794]
[1744949322729,7.47384155,133.8,133.77,6.16196794]
[1744949323637,7.47384155,133.8,133.76,21.24196794]
[1744949324033,13.63580949,133.8,133.76,15.08]
[1744949324233,6.16196794,133.79,133.74,90.61516794]
[1744949324436,6.16196794,133.79,133.74,6.16196794]
[1744949325135,35.78507928,133.8,133.75,9.62663385]
[1744949325758,9.62663385,133.79,133.74,9.62663385]
[1744949326351,7.47495888,133.78,133.74,9.62663385]
[1744949326562,35.78898994,133.78,133.73,9.62663385]
[1744949326756,9.62663385,133.74,133.69,82.81]
[1744949326964,9.62663385,133.74,133.68,11.26983385]
[1744949327255,28.27628271,133.75,133.7,9.62663385]
[1744949327756,28.27628271,133.75,133.67,130.3348]
[1744949327757,9.62663385,133.72,133.67,15.08]
[1744949327960,9.62663385,133.71,133.67,15.08]
[1744949328459,7.47943156,133.7,133.67,15.08]
[1744949328959,17.10606541,133.7,133.67,15.08]
[1744949329128,17.10606541,133.7,133.64,315.813]
[1744949329129,35.80464431,133.7,133.64,0.063]
[1744949329455,9.62663385,133.69,133.64,35.68963385]
[1744949329854,35.80464431,133.7,133.65,9.62663385]
[1744949330945,35.80464431,133.7,133.64,26.063]
[1744949331150,35.80464431,133.7,133.64,35.68963385]
[1744949332270,35.80464431,133.7,133.65,9.62663385]
[1744949332635,17.10606541,133.7,133.65,9.62663385]
[1744949332837,7.47943156,133.7,133.66,9.62663385]
[1744949333566,7.47943156,133.7,133.64,0.063]
[1744949333771,7.47943156,133.7,133.66,9.62663385]
[1744949335055,17.10606541,133.7,133.65,9.62663385]
[1744949336342,35.80464431,133.7,133.64,82.873]
[1744949336542,35.80464431,133.7,133.65,9.62663385]
[1744949338265,7.47943156,133.7,133.66,9.62663385]
[1744949338467,7.47943156,133.7,133.64,82.873]
[1744949338679,7.47943156,133.7,133.64,92.49963385]
[1744949338845,17.10606541,133.7,133.65,9.62663385]
[1744949339444,35.80464431,133.7,133.65,9.62663385]
[1744949340765,26.17801046,133.7,133.66,9.62663385]
[1744949341162,26.17801046,133.7,133.64,0.063]
[1744949341486,7.47943156,133.7,133.66,9.62663385]
[1744949341668,7.47943156,133.7,133.67,9.62663385]
[1744949341974,7.47887218,133.71,133.68,9.62663385]
[1744949342466,9.62663385,133.7,133.65,82.81]
[1744949342672,9.62663385,133.7,133.65,92.43663385]
[1744949342870,9.62663385,133.7,133.65,9.62663385]
[1744949343670,18.64964886,133.69,133.64,0.063]
[1744949343971,26.18192698,133.68,133.64,0.063]
[1744949344164,7.48055056,133.68,133.65,9.62663385]
[1744949344368,7.48055056,133.68,133.64,9.68963385]
[1744949344787,7.48055056,133.68,133.64,0.063]
[1744949344943,35.80856083,133.68,133.64,0.063]
[1744949345149,26.18192698,133.68,133.64,0.063]
[1744949345647,26.18192698,133.68,133.64,6.23450731]
[1744949346369,32.35343429,133.68,133.64,0.063]
[1744949348071,26.18192698,133.68,133.64,6.23450731]
[1744949349469,7.48055056,133.68,133.65,6.17150731]
[1744949349768,7.48055056,133.68,133.66,6.17150731]
[1744949350550,7.48055056,133.68,133.64,0.063]
[1744949350756,7.48055056,133.68,133.66,6.17150731]
[1744949351163,26.17810085,133.7,133.66,6.17150731]
[1744949351557,7.47943156,133.7,133.68,6.17150731]
[1744949351756,7.47943156,133.7,133.69,6.17150731]
[1744949352483,24.86426392,133.75,133.69,6.17150731]
[1744949352683,7.47719455,133.74,133.72,6.17150731]
[1744949353186,7.47551767,133.77,133.73,6.17150731]
[1744949353389,7.47551767,133.77,133.74,6.17150731]
[1744949353687,13.64702498,133.77,133.73,6.17150731]
[1744949353858,7.47551767,133.77,133.73,6.17150731]
[1744949355156,7.47551767,133.77,133.73,9.62842156]
[1744949355883,7.47551767,133.77,133.74,9.62842156]
[1744949356881,7.47551767,133.77,133.75,9.62842156]
[1744949357084,7.47551767,133.77,133.74,9.62842156]
[1744949357975,7.47551767,133.77,133.73,9.62842156]
[1744949358375,7.47551767,133.77,133.72,98.0]
[1744949358376,35.79273342,133.77,133.72,98.0]
[1744949358571,35.79273342,133.77,133.72,24.72842156]
[1744949358771,26.16431186,133.77,133.72,24.72842156]
[1744949358959,35.79273342,133.77,133.72,24.72842156]
[1744949359160,9.62842156,133.76,133.72,15.1]
[1744949359385,26.16626793,133.76,133.72,24.72842156]
[1744949359580,35.79468949,133.76,133.72,15.1]
[1744949359781,28.27807042,133.75,133.7,9.62842156]
[1744949360091,9.62842156,133.74,133.69,9.62842156]
[1744949360455,28.27807042,133.75,133.7,9.62842156]
[1744949361084,26.17018094,133.74,133.7,9.62842156]
[1744949361465,26.17018094,133.74,133.69,9.62842156]
[1744949361771,35.7986025,133.74,133.69,9.62842156]
[1744949361972,26.17018094,133.74,133.69,9.62842156]
[1744949362275,26.17018094,133.74,133.7,9.62842156]
[1744949362681,26.17018094,133.74,133.71,9.62842156]
[1744949364674,7.47719455,133.74,133.72,9.62842156]
[1744949364876,7.47719455,133.74,133.73,9.62842156]
[1744949365868,18.69021354,133.76,133.73,9.62842156]
[1744949366282,7.47551767,133.77,133.73,9.62842156]
[1744949366491,7.47551767,133.77,133.73,24.70842156]
[1744949367066,35.79273342,133.77,133.73,15.08]
[1744949368084,28.27807042,133.76,133.73,15.08]
[1744949368274,28.27807042,133.76,133.71,9.62842156]
[1744949368475,9.62842156,133.75,133.7,92.52842156]
[1744949368787,9.62842156,133.75,133.7,9.62842156]
[1744949369889,28.27807042,133.76,133.7,9.62842156]
[1744949370188,26.16822429,133.75,133.7,9.62842156]
[1744949370891,26.16822429,133.75,133.71,9.62842156]
[1744949371194,7.47663551,133.75,133.72,9.62842156]
[1744949371687,26.16822429,133.75,133.71,92.52842156]
[1744949371869,35.79664585,133.75,133.71,82.9]
[1744949372269,26.16822429,133.75,133.71,92.52842156]
[1744949373590,35.79664585,133.75,133.71,82.9]
[1744949373767,18.64964886,133.74,133.69,15.08]
[1744949373970,18.64964886,133.74,133.69,24.70842156]
[1744949374166,28.27807042,133.74,133.69,24.70842156]
[1744949374466,26.17213788,133.73,133.69,24.70842156]
[1744949374684,26.17213788,133.73,133.7,9.62842156]
[1744949375794,18.6943842,133.73,133.7,9.62842156]
[1744949376293,18.6943842,133.73,133.71,9.62842156]
[1744949376599,18.6943842,133.73,133.7,9.62842156]
[1744949376792,18.6943842,133.73,133.69,24.70842156]
[1744949377174,18.6943842,133.73,133.7,9.62842156]
[1744949379198,18.6943842,133.73,133.7,6.16591065]
[1744949380292,7.47719455,133.74,133.71,6.16591065]
[1744949380480,7.47719455,133.74,133.72,6.16591065]
[1744949381280,7.47719455,133.74,133.69,97.98]
[1744949381281,26.16734562,133.76,133.73,6.16591065]
[1744949381795,26.16734562,133.76,133.72,6.16591065]
[1744949384495,26.16734562,133.76,133.69,100.22398758]
[1744949384496,26.16734562,133.76,133.73,6.16591065]
[1744949384877,26.16734562,133.76,133.72,6.16591065]
[1744949385387,7.47607655,133.76,133.74,6.16591065]
[1744949385594,26.1625362,133.78,133.74,6.16591065]
[1744949391799,26.1625362,133.78,133.75,6.16591065]
[1744949393305,26.1625362,133.78,133.74,6.16591065]
[1744949394999,7.47495888,133.78,133.76,6.16591065]
[1744949396099,7.47495888,133.78,133.75,6.16591065]
[1744949397199,7.47440017,133.79,133.75,6.16591065]
[1744949397998,7.47440017,133.79,133.77,6.16591065]
[1744949398215,7.47440017,133.79,133.78,6.16591065]
[1744949398879,7.47440017,133.79,133.77,6.16591065]
[1744949399078,7.47384155,133.8,133.77,6.16591065]
[1744949400287,32.32435608,133.8,133.75,6.16591065]
[1744949400987,24.81555951,133.79,133.74,6.16591065]
[1744949401194,26.16235609,133.78,133.74,6.16591065]
[1744949401394,32.32826674,133.78,133.73,89.06591065]
[1744949401589,32.32826674,133.78,133.72,15.1]
[1744949401787,32.32826674,133.78,133.73,6.16591065]
[1744949402903,18.64964886,133.77,133.72,15.1]
[1744949403109,24.81555951,133.77,133.72,21.26591065]
[1744949403407,26.16626793,133.76,133.73,6.16591065]
[1744949404604,18.64964886,133.73,133.68,0.063]
[1744949404806,18.64964886,133.73,133.68,6.22891065]
[1744949405106,6.16591065,133.73,133.68,0.063]
[1744949405403,26.17409512,133.72,133.68,0.063]
[1744949405587,26.17409512,133.72,133.68,6.22891065]
[1744949406395,32.34000577,133.72,133.68,0.063]
[1744949406790,6.16591065,133.7,133.68,0.063]
[1744949408109,7.47999102,133.69,133.68,0.063]
[1744949408414,26.12963988,133.69,133.68,1e-08]
[1744949408799,32.29555053,133.69,133.68,1e-08]
[1744949409186,35.77121199,133.69,133.68,1e-08]
[1744949410409,26.12963988,133.69,133.68,1e-08]
[1744949411795,35.77121199,133.69,133.68,1e-08]
[1744949413916,36.1976967,133.69,133.68,1e-08]
[1744949415304,36.05553513,133.69,133.68,1e-08]
[1744949415516,36.1976967,133.69,133.68,1e-08]
[1744949416727,35.77121199,133.69,133.68,1e-08]
[1744949422325,26.12963988,133.69,133.68,1e-08]
[1744949422534,7.47999102,133.69,133.68,1e-08]
[1744949423735,18.69266055,133.75,133.68,92.54157212]
[1744949423941,18.69266055,133.75,133.72,9.64157211]
[1744949424117,7.47607655,133.76,133.73,9.64157211]
[1744949424442,7.47551767,133.77,133.73,9.64157211]
[1744949424813,0.03,133.75,133.73,9.64157211]
[1744949426210,0.03,133.75,133.74,9.64157211]
[1744949430212,0.03,133.75,133.73,9.64157211]
[1744949430630,0.03,133.75,133.72,97.94]
[1744949430946,0.03,133.75,133.72,107.58157211]
[1744949432317,0.03,133.75,133.73,9.64157211]
[1744949432515,0.03,133.75,133.74,9.64157211]
[1744949434332,0.03,133.75,133.74,92.54157211]
[1744949434527,18.67949966,133.84,133.75,6.1074]
[1744949434725,7.47272455,133.82,133.8,9.64157211]
[1744949435831,26.15110755,133.84,133.8,9.64157211]
[1744949437041,26.15110755,133.84,133.81,9.64157211]
[1744949437235,7.47160789,133.84,133.81,9.64157211]
[1744949442351,7.47107745,133.85,133.82,9.64157211]
[1744949442944,7.47107745,133.85,133.82,92.54157211]
[1744949443146,7.47070915,133.86,133.82,92.54157211]
[1744949443940,7.47004318,133.87,133.82,92.68373368]
[1744949444332,0.03,133.88,133.83,0.14216157]
[1744949444636,0.03,133.88,133.87,9.64157211]
[1744949447950,0.03,133.88,133.86,9.64157211]
[1744949448451,0.03,133.88,133.87,9.64157211]
[1744949449947,0.03,133.88,133.86,9.64157211]
[1744949450149,0.03,133.88,133.87,9.64157211]
[1744949451651,0.03,133.88,133.87,118.54157211]
[1744949454156,0.03,133.88,133.87,82.9]
[1744949457353,0.03,133.88,133.87,9.64157211]
[1744949461439,0.03,133.88,133.86,9.64157211]
[1744949462139,0.03,133.88,133.87,9.64157211]
[1744949464564,0.03,133.88,133.87,92.54157211]
[1744949465271,0.03,133.88,133.87,141.20903687]
[1744949468471,0.03,133.88,133.87,138.68373368]
[1744949472248,0.03,133.88,133.87,138.54157211]
[1744949472450,0.03,133.88,133.87,133.60157211]
[1744949472664,0.03,133.88,133.84,92.54157211]
[1744949472870,0.03,133.88,133.84,107.60157211]
[1744949473064,0.03,133.88,133.85,9.64157211]
[1744949473350,7.49937556,133.88,133.85,9.64157211]
[1744949475874,0.03,133.88,133.85,9.64157211]
[1744949483182,6.15378664,133.87,133.84,82.9]
[1744949483360,6.15378664,133.86,133.83,15.06]
[1744949484279,6.15378664,133.85,133.83,15.06]
[1744949484577,6.15378664,133.85,133.81,82.9]
[1744949484578,7.66458664,133.84,133.79,15.06]
[1744949484782,6.15378664,133.83,133.79,15.06]
[1744949485187,35.77546479,133.83,133.79,15.06]
[1744949485771,9.62216061,133.82,133.79,15.06]
[1744949487188,7.47328301,133.81,133.79,15.06]
[1744949488876,17.09544362,133.81,133.79,15.06]
[1744949489253,7.47328301,133.81,133.79,15.06]
[1744949489461,17.09544362,133.81,133.79,15.06]
[1744949489685,35.77865115,133.81,133.77,0.063]
[1744949490183,9.62216061,133.78,133.77,0.063]
[1744949490484,9.62216061,133.79,133.77,0.063]
[1744949490784,35.77865115,133.81,133.77,0.063]
[1744949490989,26.15649054,133.81,133.77,0.063]
[1744949491568,35.77865115,133.81,133.77,0.063]
[1744949493076,28.27180947,133.8,133.77,0.063]
[1744949494078,18.64964886,133.8,133.77,0.063]
[1744949495192,7.47440017,133.79,133.77,0.063]
[1744949496169,7.47440017,133.79,133.77,9.68516061]
[1744949496479,7.47440017,133.79,133.77,0.063]
[1744949497088,7.47384155,133.8,133.77,0.063]
[1744949497391,54.4302549,133.8,133.77,0.063]
[1744949499204,44.80809429,133.8,133.77,0.063]
[1744949499371,54.4302549,133.8,133.77,0.063]
[1744949499991,44.80809429,133.8,133.77,0.063]
[1744949500879,7.47384155,133.8,133.78,9.62216061]
[1744949501081,7.47384155,133.8,133.78,24.70216061]
[1744949501475,7.47384155,133.8,133.79,9.62216061]
[1744949501672,7.47384155,133.8,133.78,24.70216061]
[1744949502489,7.47328301,133.81,133.78,24.70216061]
[1744949503283,7.47328301,133.81,133.79,9.62216061]
[1744949504390,26.15380709,133.83,133.79,9.62216061]
[1744949505170,7.47216618,133.83,133.81,9.62216061]
[1744949505476,26.14490358,133.87,133.82,9.62216061]
[1744949505686,26.14490358,133.87,133.84,9.62216061]
[1744949506262,0.03,133.88,133.84,9.62216061]
[1744949506562,0.03,133.88,133.87,9.62216061]
[1744949506981,0.03,133.88,133.85,9.62216061]
[1744949507188,0.03,133.88,133.85,6.15151336]
[1744949507371,0.03,133.88,133.84,82.9]
[1744949507575,18.67964886,133.88,133.84,82.9]
[1744949507890,18.67964886,133.88,133.84,89.05151336]
[1744949508489,7.46993351,133.87,133.84,82.9]
[1744949508689,13.62144687,133.87,133.83,15.0]
[1744949509196,17.08675037,133.87,133.83,15.0]
[1744949509487,35.76158416,133.87,133.83,15.0]
[1744949510593,7.47104968,133.85,133.83,15.0]
[1744949510793,17.08786654,133.85,133.8,50.61681686]
[1744949511481,35.76549074,133.85,133.8,50.61681686]
[1744949511678,35.76549074,133.85,133.81,9.61681686]
[1744949511881,26.14867388,133.85,133.81,9.61681686]
[1744949512994,26.14867388,133.85,133.82,9.61681686]
[1744949513493,7.47104968,133.85,133.83,9.61681686]
[1744949515299,7.47104968,133.85,133.84,9.61681686]
[1744949516782,7.46993351,133.87,133.84,9.61681686]
[1744949516982,7.46993351,133.87,133.86,9.61681686]
[1744949517599,0.03,133.88,133.86,9.61681686]
[1744949518188,0.03,133.88,133.87,9.61681686]
[1744949520690,0.03,133.88,133.86,9.61681686]
[1744949520888,9.64681686,133.88,133.85,82.9]
[1744949521089,9.61681686,133.87,133.84,15.0]
[1744949521286,9.61681686,133.86,133.84,15.0]
[1744949521797,7.47104968,133.85,133.84,15.0]
[1744949522185,7.47104968,133.85,133.82,9.61681686]
[1744949522505,7.47104968,133.85,133.81,340.33681686]
[1744949523282,7.47104968,133.85,133.82,9.61681686]
[1744949523487,7.47104968,133.85,133.83,9.61681686]
[1744949523687,7.46993351,133.87,133.83,9.61681686]
[1744949524007,7.46993351,133.87,133.85,9.61681686]
[1744949524509,7.46993351,133.87,133.84,9.61681686]
[1744949524703,7.46993351,133.87,133.85,9.61681686]
[1744949525009,7.49960593,133.88,133.86,9.61681686]
[1744949525207,7.49960593,133.88,133.87,9.61681686]
[1744949525387,0.03,133.88,133.87,9.61681686]
[1744949526103,0.03,133.88,133.87,92.51681686]
[1744949526312,0.03,133.88,133.87,94.01080356]
[1744949528299,0.03,133.88,133.87,92.51681686]
[1744949535502,0.03,133.88,133.87,94.01080356]
[1744949536714,0.03,133.88,133.87,118.51681686]
[1744949539210,0.03,133.88,133.87,120.01080356]
[1744949539616,0.03,133.88,133.87,118.51681686]
[1744949545524,0.03,133.88,133.87,120.01080356]
[1744949546829,0.03,133.88,133.87,118.51681686]